fUST/lending_fUST_20251011
["ID","MTS","AMOUNT","RATE_DAILY","PERIOD"]
[390664447,1760116239521,-500.0,0.00026209,2]
[390664449,1760116239532,-500.0,0.00026209,2]
[390664451,1760116239542,-500.0,0.00026209,2]
[390664453,1760116239552,-500.0,0.00026209,2]
[390664455,1760116239562,-500.0,0.00026209,2]
[390664457,1760116239573,-500.0,0.00026209,2]
[390664459,1760116239584,-2080.3,0.00026461,2]
[390664461,1760116239594,-151.0,0.000265,13]
[390664463,1760116239604,-2000.0,0.00026516,2]
[390664465,1760116239613,-460.0,0.00026552,2]
[390664467,1760116239623,-500.0,0.00026582,2]
[390664469,1760116239633,-156.49410531,0.00026615,7]
[390664471,1760116239643,-973.078265,0.00026676,2]
[390664473,1760116239653,-177.48307072,0.0002675,2]
[390664475,1760116239663,-10572.96241187,0.00026757,2]
[390664477,1760116239672,-17167.4317147,0.0002685,2]
[390664479,1760116239682,-151.0,0.0002685,2]
[390664481,1760116239690,-151.0,0.0002685,2]
[390664483,1760116239700,-151.0,0.0002685,2]
[390664485,1760116239709,-151.0,0.0002685,2]
[390664487,1760116239718,-151.0,0.0002685,2]
[390664489,1760116239727,-151.0,0.0002685,2]
[390664491,1760116239737,-151.0,0.0002685,2]
[390664493,1760116239746,-151.0,0.0002685,2]
[390664495,1760116239756,-151.0,0.0002685,2]
[390664497,1760116239765,-780.0,0.0002685,2]
[390664499,1760116239774,-151.0,0.0002685,2]
[390664500,1760116239783,-156.98619799,0.0002685,2]
[390664502,1760116239793,-151.0,0.000269,13]
[390664505,1760116239803,-151.0,0.00026905,2]
[390664506,1760116239812,-151.0,0.00026905,2]
[390664509,1760116239825,-151.0,0.00026905,2]
[390664510,1760116239836,-151.0,0.00026905,2]
[390664512,1760116239847,-151.0,0.00026905,2]
[390664515,1760116239856,-780.0,0.00026905,2]
[390664516,1760116239866,-151.0,0.00026905,2]
[390664519,1760116239876,-6056.86301663,0.00026949,2]
[390664520,1760116239888,-151.0,0.0002696,2]
[390664523,1760116239898,-198.0,0.0002696,2]
[390664525,1760116239908,-198.0,0.0002696,2]
[390664527,1760116239918,-151.0,0.0002696,2]
[390664528,1760116239930,-151.0,0.0002696,2]
[390664530,1760116239941,-780.0,0.0002696,2]
[390664532,1760116239951,-151.0,0.0002696,2]
[390664535,1760116239961,-1000.0,0.00027,2]
[390664536,1760116239971,-151.0,0.00027014,2]
[390664538,1760116239980,-198.0,0.00027014,2]
[390664540,1760116239989,-246.55682446,0.00027014,2]
[390664542,1760116239999,-780.0,0.00027014,2]
[390664544,1760116240008,-198.0,0.00027014,2]
[390664546,1760116240018,-2500.0,0.00027064,2]
[390664549,1760116240027,-152.89660167,0.00027069,2]
[390664552,1760116240037,-780.0,0.00027069,2]
[390664555,1760116240046,-560.0,0.000271,2]
[390664558,1760116240055,-1005.7224765,0.00027123,3]
[390664561,1760116240065,-780.0,0.00027124,2]
[390664564,1760116240074,-780.0,0.00027179,2]
[390664567,1760116240084,-780.0,0.00027234,2]
[390664571,1760116240093,-1013.506465,0.0002728,5]
[390664574,1760116240103,-630.0,0.00027283,2]
[390664577,1760116240112,-2159.0,0.00027283,2]
[390664580,1760116240121,-411.0,0.00027283,2]
[390664583,1760116240130,-780.0,0.00027288,2]
[390664586,1760116240139,-151.0,0.000273,14]
[390664589,1760116240149,-150.0,0.000273,5]
[390664592,1760116240159,-1000.0,0.000273,5]
[390664595,1760116240168,-780.0,0.00027343,2]
[390664599,1760116240178,-168.0,0.00027368,2]
[390664602,1760116240187,-6056.86301663,0.00027387,2]
[390664605,1760116240197,-6056.86301663,0.0002739,2]
[390664607,1760116240207,-500.0,0.00027397,2]
[390664610,1760116240216,-500.0,0.00027397,2]
[390664613,1760116240225,-500.0,0.00027397,2]
[390664616,1760116240235,-500.0,0.00027397,2]
[390664618,1760116240244,-182.96283976,0.00027397,2]
[390664620,1760116240253,-266.34,0.00027397,49]
[390664622,1760116240263,-300.0,0.00027397,2]
[390664624,1760116240272,-300.0,0.00027397,2]
[390664626,1760116240282,-300.0,0.00027397,2]
[390664627,1760116240291,-300.0,0.00027397,2]
[390664629,1760116240301,-300.0,0.00027397,2]
[390664631,1760116240310,-300.0,0.00027397,2]
[390664633,1760116240320,-300.0,0.00027397,2]
[390664635,1760116240329,-300.0,0.00027397,2]
[390664637,1760116240340,-300.0,0.00027397,2]
[390664639,1760116240350,-345.91834033,0.00027397,2]
[390664641,1760116240359,-500.0,0.00027397,2]
[390664643,1760116240370,-500.0,0.00027397,2]
[390664644,1760116240379,-500.0,0.00027397,2]
[390664645,1760116240389,-500.0,0.00027397,2]
[390664646,1760116240398,-500.0,0.00027397,2]
[390664647,1760116240408,-500.0,0.00027397,2]
[390664648,1760116240417,-409.69387175,0.00027397,2]
[390664649,1760116240426,-500.0,0.00027397,60]
[390664650,1760116240436,-500.0,0.00027397,60]
[390664651,1760116240445,-500.0,0.00027397,60]
[390664652,1760116240454,-500.0,0.00027397,60]
[390664653,1760116240463,-500.0,0.00027397,60]
[390664654,1760116240472,-500.0,0.00027397,60]
[390664655,1760116240483,-1000.0,0.00027397,2]
[390664656,1760116240494,-500.0,0.00027397,60]
[390664657,1760116240503,-500.0,0.00027397,60]
[390664658,1760116240512,-500.0,0.00027397,60]
[390664659,1760116240522,-500.0,0.00027397,60]
[390664661,1760116240683,-330.30398943,0.00027397,60]
[390664662,1760116240693,-941.94,0.00027397,60]
[390664663,1760116240705,-941.94,0.00027397,60]
[390664664,1760116240724,-941.94,0.00027397,60]
[390664665,1760116240733,-941.94,0.00027397,60]
[390664666,1760116240742,-941.94,0.00027397,60]
[390664667,1760116240752,-941.94,0.00027397,60]
[390664668,1760116240761,-941.94,0.00027397,60]
[390664669,1760116240769,-941.94,0.00027397,60]
[390664670,1760116240778,-941.94,0.00027397,60]
[390664671,1760116240788,-941.94,0.00027397,60]
[390664672,1760116240797,-941.94,0.00027397,60]
[390664673,1760116240806,-941.94,0.00027397,60]
[390664674,1760116240816,-941.94,0.00027397,60]
[390664675,1760116240826,-941.94,0.00027397,60]
[390664676,1760116240836,-941.94,0.00027397,60]
[390664677,1760116240845,-941.94,0.00027397,60]
[390664678,1760116240855,-941.94,0.00027397,60]
[390664679,1760116240864,-941.94,0.00027397,60]
[390664680,1760116240873,-941.94,0.00027397,60]
[390664681,1760116240882,-941.94,0.00027397,60]
[390664682,1760116240891,-941.94,0.00027397,60]
[390664683,1760116240900,-941.94,0.00027397,60]
[390664684,1760116240910,-941.94,0.00027397,60]
[390664685,1760116240919,-942.16636747,0.00027397,60]
[390664686,1760116240929,-586.60738582,0.00027397,60]
[390664687,1760116240938,-500.0,0.00027397,60]
[390664688,1760116240948,-500.0,0.00027397,60]
[390664689,1760116240957,-500.0,0.00027397,60]
[390664690,1760116240966,-500.0,0.00027397,60]
[390664691,1760116240976,-500.0,0.00027397,60]
[390664692,1760116240985,-500.0,0.00027397,60]
[390664693,1760116240995,-500.0,0.00027397,60]
[390664694,1760116241005,-500.0,0.00027397,60]
[390664695,1760116241014,-500.0,0.00027397,60]
[390664696,1760116241024,-500.0,0.00027397,60]
[390664697,1760116241033,-500.0,0.00027397,60]
[390664698,1760116241043,-500.0,0.00027397,60]
[390664699,1760116241052,-500.0,0.00027397,60]
[390664700,1760116241062,-154.68155529,0.00027397,2]
[390664701,1760116241071,-160.47107984,0.00027397,2]
[390664702,1760116241080,-780.0,0.00027398,2]
[390664703,1760116241090,-500.0,0.000274,5]
[390664704,1760116241100,-500.0,0.000274,5]
[390664705,1760116241109,-517.02984979,0.000274,5]
[390664706,1760116241118,-500.0,0.000274,5]
[390664707,1760116241128,-500.0,0.000274,5]
[390664708,1760116241137,-160.0,0.00027422,5]
[390664709,1760116241146,-522.35299868,0.00027444,10]
[390664710,1760116241155,-780.0,0.00027453,2]
[390664711,1760116241165,-1460.82672914,0.00027499,2]
[390664712,1760116241175,-780.0,0.00027508,2]
[390664713,1760116241184,-780.0,0.00027562,2]
[390664714,1760116241194,-3000.0,0.00027612,5]
[390664715,1760116241203,-780.0,0.00027617,2]
[390664716,1760116241213,-1580.34548532,0.00027618,2]
[390664717,1760116241222,-6037.19,0.00027644,2]
[390664718,1760116241232,-660.0,0.00027648,2]
[390664719,1760116241242,-780.0,0.00027672,2]
[390664720,1760116241251,-500.0,0.00027678,7]
[390664721,1760116241261,-780.0,0.00027727,2]
[390664722,1760116241271,-1460.82672914,0.00027736,2]
[390664723,1760116241280,-1000.0,0.00027767,5]
[390664724,1760116241290,-1000.0,0.00027767,5]
[390664725,1760116241299,-1000.0,0.00027767,20]
[390664726,1760116241309,-1000.0,0.00027767,5]
[390664727,1760116241318,-878.3000009,0.00027767,5]
[390664728,1760116241328,-1000.0,0.00027767,5]
[390664729,1760116241339,-1000.0,0.00027767,5]
[390664731,1760116241348,-780.0,0.00027782,2]
[390664733,1760116241357,-151.0,0.000278,14]
[390664734,1760116241367,-780.0,0.00027836,2]
[390664736,1760116241376,-780.0,0.00027891,2]
[390664738,1760116241386,-162.8446322,0.00027917,30]
[390664740,1760116241396,-297.8284942,0.00027917,30]
[390664741,1760116241405,-409.7560672,0.00027917,30]
[390664743,1760116241415,-780.0,0.00027946,2]
[390664745,1760116241425,-1000.0,0.00027948,5]
[390664746,1760116241435,-1000.0,0.00027948,5]
[390664748,1760116241444,-2000.0,0.00028,4]
[390664750,1760116241453,-780.0,0.00028001,2]
[390664751,1760116241463,-780.0,0.00028055,2]
[390664752,1760116241475,-787.0,0.0002811,2]
[390664754,1760116241487,-500.0,0.00028133,5]
[390664756,1760116241496,-3500.0,0.0002816,5]
[390664757,1760116241505,-1460.82672916,0.00028167,2]
[390664759,1760116241514,-760.0,0.00028196,2]
[390664761,1760116241524,-151.0,0.000282,20]
[390664763,1760116241534,-1152.0,0.00028226,2]
[390664764,1760116241543,-3144.0063486,0.00028316,2]
[390664765,1760116241552,-6056.86301663,0.00028343,2]
[390664767,1760116241562,-500.0,0.00028473,5]
[390664769,1760116241571,-500.0,0.00028473,5]
[390664771,1760116241580,-500.0,0.00028473,5]
[390664772,1760116241590,-639.78746171,0.00028473,5]
[390664774,1760116241599,-500.0,0.00028473,5]
[390664775,1760116241608,-390.3857757,0.00028473,5]
[390664777,1760116241618,-6056.86301663,0.0002848,2]
[390664779,1760116241627,-151.0,0.0002849,10]
[390664780,1760116241636,-151.0,0.0002849,10]
[390664782,1760116241645,-260.68741844,0.0002849,10]
[390664784,1760116241655,-213.31060063,0.0002849,10]
[390664786,1760116241664,-12113.7260333,0.0002849,2]
[390664788,1760116241673,-1500.0,0.00028496,5]
[390664790,1760116241683,-1500.0,0.00028496,5]
[390664792,1760116241692,-87179.59351073,0.000285,7]
[390664793,1760116241701,-1041.66666667,0.000285,7]
[390664795,1760116241710,-160.0,0.000285,7]
[390664796,1760116241719,-160.0,0.000285,7]
[390664797,1760116241728,-298.03512572,0.000285,7]
[390664798,1760116241737,-500.0,0.000285,7]
[390664799,1760116241746,-160.0,0.000285,7]
[390664800,1760116241755,-602.096,0.0002856,2]
[390664801,1760116241764,-602.096,0.0002866,2]
[390664802,1760116241774,-496.47532479,0.00028681,5]
[390664803,1760116241783,-6056.86301663,0.0002869,2]
[390664804,1760116241792,-14031.62,0.000287,2]
[390664805,1760116241801,-258.29115831,0.000287,3]
[390664806,1760116241811,-3000.0,0.000287,7]
[390664807,1760116241821,-300.0,0.000287,2]
[390664808,1760116241830,-4000.0,0.00028708,5]
[390664809,1760116241842,-860.0,0.00028744,2]
[390664810,1760116241852,-150.0,0.0002875,7]
[390664811,1760116241861,-6056.86301663,0.00028751,2]
[390664812,1760116241870,-602.096,0.0002876,2]
[390664813,1760116241879,-1293.84598785,0.0002876,2]
[390664814,1760116241888,-4000.0,0.0002876,5]
[390664815,1760116241897,-1000.0,0.0002876,5]
[390664816,1760116241906,-1000.0,0.0002876,5]
[390664817,1760116241916,-1000.0,0.0002876,20]
[390664818,1760116241926,-1000.0,0.0002876,5]
[390664819,1760116241935,-1000.0,0.0002876,5]
[390664820,1760116241944,-6056.86301663,0.00028761,2]
[390664821,1760116241953,-18503.0,0.00028767,30]
[390664822,1760116241963,-160.0,0.00028767,30]
[390664823,1760116241972,-298.03512572,0.00028767,30]
[390664824,1760116241981,-500.0,0.00028767,6]
[390664825,1760116241991,-1000.0,0.00028767,30]
[390664826,1760116242000,-151.0,0.00028767,30]
[390664827,1760116242009,-151.0,0.00028767,30]
[390664828,1760116242018,-2007.0,0.00028767,2]
[390664829,1760116242027,-1801.62324059,0.00028767,7]
[390664830,1760116242036,-2000.0,0.00028767,20]
[390664831,1760116242046,-2109.8,0.00028767,7]
[390664832,1760116242055,-158.16,0.00028767,2]
[390664833,1760116242065,-500.0,0.00028767,15]
[390664834,1760116242075,-500.0,0.00028767,30]
[390664835,1760116242090,-500.0,0.00028767,7]
[390664836,1760116242103,-500.0,0.00028767,15]
[390664837,1760116242116,-293.38,0.00028767,7]
[390664838,1760116242127,-1053.06518199,0.00028771,120]
[390664839,1760116242138,-174.28793287,0.00028771,120]
[390664840,1760116242150,-22470.41876454,0.00028771,120]
[390664841,1760116242163,-500.0,0.00028773,5]
[390664842,1760116242175,-500.0,0.00028773,5]
[390664843,1760116242188,-552.88844342,0.00028773,5]
[390664844,1760116242201,-500.0,0.00028773,5]
[390664845,1760116242217,-500.0,0.00028773,5]
[390664846,1760116242229,-500.0,0.00028773,5]
[390664847,1760116242242,-6056.86301663,0.0002879,2]
[390664848,1760116242254,-169.43143565,0.000288,7]
[390664849,1760116242265,-5362.33,0.000288,2]
[390664850,1760116242277,-200.0,0.000288,120]
[390664851,1760116242287,-200.0,0.000288,120]
[390664852,1760116242299,-2819.74286723,0.000288,7]
[390664853,1760116242312,-200.0,0.00028809,120]
[390664854,1760116242323,-200.0,0.0002884,120]
[390664855,1760116242337,-500.0,0.00028873,5]
[390664856,1760116242347,-500.0,0.00028873,2]
[390664857,1760116242358,-500.0,0.00028873,5]
[390664858,1760116242370,-566.36803254,0.00028873,5]
[390664859,1760116242383,-500.0,0.00028873,5]
[390664860,1760116242396,-500.0,0.00028873,5]
[390664861,1760116242409,-592.89641741,0.00028873,5]
[390664862,1760116242421,-1000.0,0.0002888,15]
[390664863,1760116242434,-6056.86301663,0.0002888,2]
[390664864,1760116242448,-277600.0,0.000289,30]
[390664865,1760116242461,-298.03512572,0.000289,30]
[390664866,1760116242476,-1041.66666667,0.000289,30]
[390664867,1760116242487,-151.0,0.000289,30]
[390664868,1760116242497,-151.0,0.000289,30]
[390664869,1760116242508,-151.0,0.000289,30]
[390664870,1760116242521,-151.824686,0.000289,30]
[390664871,1760116242534,-151.0,0.000289,30]
[390664872,1760116242546,-151.0,0.000289,30]
[390664873,1760116242556,-151.0,0.000289,30]
[390664874,1760116242567,-151.0,0.000289,30]
[390664875,1760116242578,-151.0,0.000289,30]
[390664876,1760116242594,-151.0,0.000289,30]
[390664877,1760116242605,-151.0,0.000289,30]
[390664878,1760116242616,-151.0,0.000289,30]
[390664879,1760116242626,-151.0,0.000289,30]
[390664880,1760116242637,-151.0,0.000289,30]
[390664881,1760116242648,-151.0,0.000289,30]
[390664882,1760116242659,-151.0,0.000289,30]
[390664883,1760116242670,-287.638614,0.000289,30]
[390664884,1760116242681,-286.417008,0.000289,30]
[390664885,1760116242692,-151.0,0.000289,30]
[390664886,1760116242704,-151.0,0.000289,30]
[390664887,1760116242716,-151.0,0.000289,30]
[390664888,1760116242728,-151.785123,0.000289,30]
[390664889,1760116242740,-151.0,0.000289,30]
[390664890,1760116242753,-151.0,0.000289,30]
[390664891,1760116242765,-151.0,0.000289,30]
[390664892,1760116242779,-151.0,0.000289,30]
[390664893,1760116242790,-151.0,0.000289,30]
[390664894,1760116242801,-151.0,0.000289,30]
[390664895,1760116242813,-151.0,0.000289,30]
[390664896,1760116242824,-151.0,0.000289,30]
[390664897,1760116242837,-151.0,0.000289,30]
[390664898,1760116242851,-152.65661,0.000289,30]
[390664899,1760116242864,-151.0,0.000289,30]
[390664900,1760116242876,-151.0,0.000289,30]
[390664901,1760116242889,-151.0,0.000289,30]
[390664902,1760116242901,-151.0,0.000289,30]
[390664903,1760116242914,-159.480162,0.000289,30]
[390664904,1760116242926,-151.0,0.000289,30]
[390664905,1760116242939,-151.0,0.000289,30]
[390664906,1760116242951,-151.0,0.000289,30]
[390664907,1760116242963,-151.0,0.000289,30]
[390664909,1760116242976,-151.0,0.000289,30]
[390664910,1760116242989,-151.0,0.000289,30]
[390664928,1760116243208,-151.0,0.000289,2]
[390664930,1760116243221,-151.0,0.000289,30]
[390664932,1760116243234,-151.0,0.000289,30]
[390664934,1760116243246,-151.0,0.000289,30]
[390664936,1760116243257,-152.484242,0.000289,30]
[390664937,1760116243270,-285.252306,0.000289,30]
[390664938,1760116243282,-285.252306,0.000289,30]
[390664939,1760116243294,-285.252306,0.000289,30]
[390664940,1760116243305,-285.252306,0.000289,30]
[390664942,1760116243317,-151.0,0.000289,30]
[390664943,1760116243330,-151.659666,0.000289,30]
[390664944,1760116243347,-151.638162,0.000289,30]
[390664945,1760116243359,-151.0,0.000289,30]
[390664946,1760116243370,-151.0,0.000289,30]
[390664947,1760116243382,-151.859235,0.000289,30]
[390664948,1760116243394,-151.0,0.000289,30]
[390664949,1760116243406,-151.0,0.000289,30]
[390664950,1760116243417,-151.0,0.000289,30]
[390664951,1760116243428,-151.929403,0.000289,30]
[390664952,1760116243440,-151.555572,0.000289,30]
[390664953,1760116243452,-151.0,0.000289,30]
[390664954,1760116243463,-152.068633,0.000289,30]
[390664955,1760116243476,-151.0,0.000289,30]
[390664957,1760116243492,-151.0,0.000289,30]
[390664959,1760116243504,-151.0,0.000289,30]
[390664961,1760116243515,-151.0,0.000289,30]
[390664963,1760116243527,-294.235924,0.000289,30]
[390664965,1760116243539,-294.235924,0.000289,30]
[390664967,1760116243551,-294.235924,0.000289,30]
[390664968,1760116243564,-294.235924,0.000289,30]
[390664970,1760116243579,-151.0,0.000289,30]
[390664972,1760116243593,-151.0,0.000289,30]
[390664974,1760116243605,-151.0,0.000289,30]
[390664976,1760116243616,-151.0,0.000289,30]
[390664977,1760116243628,-151.0,0.000289,15]
[390664980,1760116243640,-151.0,0.000289,30]
[390664982,1760116243652,-151.0,0.000289,30]
[390664984,1760116243663,-151.0,0.000289,30]
[390664986,1760116243674,-151.0,0.000289,30]
[390664988,1760116243686,-151.0,0.000289,30]
[390664990,1760116243697,-151.0,0.000289,30]
[390664992,1760116243708,-1196.421727,0.000289,30]
[390664993,1760116243719,-151.0,0.000289,30]
[390664995,1760116243732,-151.0,0.000289,30]
[390664997,1760116243744,-1196.421727,0.000289,30]
[390664999,1760116243755,-151.0,0.000289,30]
[390665000,1760116243766,-151.0,0.000289,30]
[390665001,1760116243777,-151.0,0.000289,30]
[390665002,1760116243789,-1196.421727,0.000289,30]
[390665003,1760116243800,-1196.421727,0.000289,30]
[390665004,1760116243811,-151.0,0.000289,30]
[390665005,1760116243822,-152.357197,0.000289,30]
[390665006,1760116243833,-151.506493,0.000289,30]
[390665007,1760116243845,-151.0,0.000289,30]
[390665008,1760116243856,-151.0,0.000289,30]
[390665009,1760116243868,-151.585028,0.000289,30]
[390665010,1760116243879,-151.0,0.000289,30]
[390665011,1760116243890,-11003.91,0.0002891,2]
[390665012,1760116243902,-163.5,0.00028912,4]
[390665013,1760116243913,-161.12,0.00028912,4]
[390665014,1760116243924,-16462.0448146,0.00028927,2]
[390665020,1760116244360,-705.3869001,0.00028927,2]
[390665021,1760116244370,-151.0,0.00028927,30]
[390665022,1760116244381,-183.75,0.0002894,4]
[390665023,1760116244391,-190.37512132,0.00028953,120]
[390665024,1760116244770,-9.62487868,0.00028953,120]
[390665025,1760116244780,-150.0,0.00028973,5]
[390665026,1760116244789,-2201.47532132,0.0002899,2]
[390665027,1760116244801,-2314.02719835,0.0002899,2]
[390665028,1760116244810,-880.14591394,0.00029,2]
[390665029,1760116244819,-5290.73562015,0.00029,30]
[390665030,1760116244831,-4709.26437985,0.00029,30]
[390665031,1760116244844,-1073.78814967,0.00029,2]
[390665032,1760116244853,-1000.39586311,0.00029,120]
[390665033,1760116244863,-12837.72916313,0.00029,120]
[390665034,1760116244872,-396.13845,0.00029,120]
[390665035,1760116244881,-29185.9221,0.00029,120]
[390665037,1760116244891,-153.0,0.00029,120]
[390665039,1760116244900,-501.32831926,0.00029,7]
[390665040,1760116244910,-1041.66666667,0.00029,120]
[390665042,1760116244919,-14000.0,0.00029,2]
[390665043,1760116244928,-160.0,0.00029,30]
[390665045,1760116244938,-300.35794962,0.00029,3]
[390665047,1760116244947,-234.32063665,0.00029,30]
[390665049,1760116244956,-160.0,0.00029,7]
[390665051,1760116244965,-160.0,0.00029,7]
[390665053,1760116244974,-1041.66666667,0.00029,7]
[390665055,1760116244984,-298.03512572,0.00029,7]
[390665058,1760116244994,-1041.66666667,0.00029,30]
[390665059,1760116245003,-298.03512572,0.00029,7]
[390665062,1760116245012,-160.0,0.00029,3]
[390665064,1760116245022,-79467.76658575,0.00029,30]
[390665065,1760116245031,-160.0,0.00029,7]
[390665068,1760116245041,-1041.66666667,0.00029,7]
[390665070,1760116245051,-160.0,0.00029,7]
[390665072,1760116245060,-1050.27,0.00029,2]
[390665074,1760116245069,-1615.449026,0.00029,2]
[390665075,1760116245078,-247.082058,0.00029027,30]
[390665077,1760116245088,-151.0,0.00029027,30]
[390665079,1760116245098,-151.0,0.00029027,30]
[390665081,1760116245106,-151.0,0.00029027,30]
[390665083,1760116245115,-151.0,0.00029027,30]
[390665085,1760116245125,-181.953465,0.00029027,30]
[390665087,1760116245134,-151.0,0.00029027,30]
[390665090,1760116245143,-151.0,0.00029027,30]
[390665092,1760116245153,-151.0,0.00029027,30]
[390665093,1760116245162,-151.0,0.00029027,30]
[390665095,1760116245171,-151.0,0.00029027,30]
[390665097,1760116245182,-151.0,0.00029027,30]
[390665099,1760116245191,-151.0,0.00029027,30]
[390665101,1760116245200,-151.0,0.00029027,30]
[390665103,1760116245210,-151.0,0.00029027,30]
[390665105,1760116245220,-151.0,0.00029027,30]
[390665107,1760116245229,-151.0,0.00029027,30]
[390665110,1760116245240,-151.0,0.00029027,30]
[390665112,1760116245250,-151.0,0.00029027,30]
[390665114,1760116245259,-284.672366,0.00029027,30]
[390665116,1760116245269,-151.0,0.00029027,30]
[390665118,1760116245278,-151.0,0.00029027,30]
[390665120,1760116245288,-151.0,0.00029027,30]
[390665122,1760116245298,-151.0,0.00029027,30]
[390665124,1760116245307,-151.0,0.00029027,30]
[390665126,1760116245316,-151.0,0.00029027,30]
[390665128,1760116245325,-151.0,0.00029027,30]
[390665129,1760116245335,-151.0,0.00029027,30]
[390665132,1760116245345,-19438.47372187,0.00029039,3]
[390665134,1760116245357,-24183.51851799,0.00029039,3]
[390665136,1760116245366,-151.0,0.00029039,30]
[390665138,1760116245375,-151.0,0.00029039,30]
[390665140,1760116245385,-151.0,0.00029039,30]
[390665142,1760116245394,-151.0,0.00029039,30]
[390665144,1760116245403,-151.0,0.00029039,30]
[390665146,1760116245412,-151.0,0.00029039,30]
[390665148,1760116245422,-151.0,0.00029039,30]
[390665150,1760116245431,-151.0,0.00029039,30]
[390665152,1760116245442,-151.0,0.00029039,30]
[390665154,1760116245451,-151.0,0.00029039,30]
[390665156,1760116245460,-285.252306,0.00029039,30]
[390665158,1760116245470,-285.252306,0.00029039,30]
[390665181,1760116245687,-285.252306,0.00029039,30]
[390665183,1760116245697,-285.252306,0.00029039,30]
[390665185,1760116245707,-285.252306,0.00029039,30]
[390665187,1760116245716,-285.252306,0.00029039,30]
[390665189,1760116245726,-285.252306,0.00029039,30]
[390665191,1760116245735,-285.252306,0.00029039,30]
[390665193,1760116245744,-151.0,0.00029039,30]
[390665195,1760116245754,-151.0,0.00029039,30]
[390665197,1760116245762,-151.0,0.00029039,30]
[390665199,1760116245772,-151.0,0.00029039,30]
[390665201,1760116245781,-11076.0413686,0.0002904,2]
[390665249,1760116246143,-160.645939,0.00028767,30]
[390665251,1760116246152,-151.0,0.00028767,30]
[390665253,1760116246161,-151.0,0.000289,30]
[390665255,1760116246171,-12118.354068,0.0002904,2]
[390665257,1760116246186,-151.0,0.00028927,30]
[390665259,1760116246195,-27098.9999,0.0002904,2]
[390665261,1760116246206,-2195.59228479,0.0002904,2]
[390665263,1760116246217,-47275.0,0.0002904,2]
[390665296,1760116246674,-878.14,0.00019106,2]
[390665297,1760116246684,-1756.27,0.00020843,2]
[390665298,1760116246693,-5921.38,0.0002889,10]
[390665299,1760116246702,-151.0,0.000289,30]
[390665300,1760116246710,-3067.21,0.0002904,2]
[390665316,1760116246938,-2634.41,0.00022579,2]
[390665319,1760116246949,-9219.54660261,0.0002904,2]
[390665321,1760116246960,-5240.146,0.0002904,2]
[390665323,1760116246971,-5966.55865253,0.0002904,2]
[390665326,1760116246982,-7949.94606472,0.0002904,2]
[390666538,1760116834790,10000.0,0.00028767,120]
[390666539,1760116851032,5013.33129647,0.00028767,120]
[390666540,1760116853805,6718.0,0.00024,30]
[390666608,1760116921129,1019.64891357,0.00028767,120]
[390667152,1760117141268,20000.0,0.00028767,120]
[390667314,1760117422251,160.0,0.00013699,2]